[Event "Chhattisgarh Masters GM 2022"]
[Site "Chhattisgarh"]
[Date "2022.09.21"]
[Round "3.12"]
[White "Bommini Mounika Akshaya"]
[Black "Paichadze, Luka"]
[Result "0-1"]
[ECO "E21"]
[WhiteElo "2152"]
[BlackElo "2560"]
[Annotator "TA"]
[PlyCount "86"]
[EventDate "2022.09.19"]
[EventCountry "IND"]
[SourceTitle "playchess.com"]
[Source "ChessBase"]
[SourceQuality "1"]
[TimeControl "5400+30"]

{[%evp 19,86,0,22,0,24,-20,-9,-31,-34,-38,-36,-81,2,-52,-58,-111,-107,-112,-61,-93,-81,-79,-92,-118,-100,-108,-110,-122,-122,-139,-148,-150,-137,-178,-123,-178,-124,-313,-296,-302,-302,-238,-230,-237,-220,-319,-319,-326,-328,-341,-335,-573,-566,-609,-599,-629,-633,-1537,-1442,-12839,-5697,-29977,-29978,-29987,-29988,-29987,-29978,-12829,-5393]} 1. d4 {[%emt 0:00:06]} Nf6 {[%emt 0:00:06]} 2. c4 {[%emt 0:00:09]} e6 {[%emt 0:00:04]} 3. Nc3 {[%emt 0:00:06]} Bb4 {[%emt 0:00:06]} 4. e3 {[%emt 0:00:07]} b6 {[%emt 0:01:31]} 5. Bd2 {[%emt 0:00:28]} Bb7 {[%emt 0:00:34]} 6. Nf3 {[%emt 0:00:26]} O-O {[%emt 0:00:23]} 7. Bd3 {[%emt 0:00:13]} d6 {[%emt 0:01:57]} 8. a3 {[%emt 0:12:19]} Bxc3 {[%emt 0:00:42]} 9. Bxc3 {[%emt 0:00:06]} Nbd7 {[%emt 0:00:25][%cal Bb8d7,Bd7c5,Bc5d3][%mdl 32]} 10. Qc2 {[%emt 0:06:29]} Qe7 {[%emt 0:02:47]} 11. e4 {[%emt 0:08:52] aiming for e5. E21: Nimzo-Indian: 4 Nf3.} e5 {[%emt 0:01:33][%cal Of6e4]} 12. d5 {[%emt 0:02:04]} Nc5 {[%emt 0:00:11]} 13. b4 {[%emt 0:12:01] The position is equal.} Nxd3+ {[%emt 0:02:29]} 14. Qxd3 {[%emt 0:00:01]} Nh5 {[%emt 0:01:11] Strongly threatening ...Nf4.} 15. O-O {[%emt 0:04:53]} Bc8 {[%emt 0:08:53]} ({Better is} 15... Nf4 $17 16. Qc2 f5) 16. Bd2 {[%emt 0:08:27]} (16. Qd1 $11) 16... f5 $15 {[%emt 0:00:33]} 17. c5 {[%emt 0:05:16] [#]} (17. exf5 $15 Bxf5 18. Qc3) 17... fxe4 $146 {[%emt 0:03:45]} ({Predecessor:} 17... h6 18. Rac1 fxe4 19. Qxe4 Nf6 20. Qc4 Bb7 21. c6 Bc8 22. Bc3 Qf7 23. Rcd1 a5 {0-1 (38) Dixit,A (2054)-Ibrayev,N (2388) Chess.com INT 2021}) 18. Qxe4 {[%emt 0:00:09]} Bf5 {[%emt 0:04:15]} (18... h6 $17 19. Rac1 Qf7 20. cxd6 cxd6) 19. Qc4 {[%emt 0:00:59]} h6 {[%emt 0:01:13]} ({Don't play} 19... bxc5 $6 20. bxc5 h6 21. Rae1 $11) 20. Rac1 {[%emt 0:06:35]} Qf7 21. Be3 {[%emt 0:09:03]} Rad8 {[%emt 0:08:23]} 22. Rfd1 {[%emt 0:00:49]} Nf6 {[%emt 0:03:48]} 23. cxb6 {[%emt 0:02:26]} cxb6 {[%emt 0:00:16]} 24. Ne1 {[%emt 0:02:33]} Be4 {[%emt 0:01:32]} 25. f3 {[%emt 0:00:51]} Bxd5 {[%emt 0:00:09]} 26. Qa6 {[%emt 0:01:03]} Ba8 {[%emt 0:01:22]} (26... e4 $19 27. Qe2 exf3 28. Nxf3 Rde8) 27. Nd3 {[%emt 0:00:43]} (27. Qc4 $17) 27... Rfe8 {[%emt 0:01:38]} ({Black should try} 27... e4 $19 28. fxe4 Bxe4) 28. Rc2 $2 {[%emt 0:01:29] This costs White the game.} (28. Nf2 $17) 28... e4 $19 {[%emt 0:03:35]} 29. fxe4 {[%emt 0:00:36]} Rxe4 {[%emt 0:01:37]} ({Worse is} 29... Ng4 30. Bf4 $17) 30. Bf2 {[%emt 0:02:23]} Qb3 {[%emt 0:02:21]} ({Weaker is} 30... Qh5 31. Rdc1) 31. Rdc1 {[%emt 0:04:04]} Rde8 {[%emt 0:05:18]} 32. Ne1 {[#]} (32. Rc8 {was necessary.}) 32... Rxe1+ $1 {[%emt 0:22:45][%mdl 512]} 33. Bxe1 {[%emt 0:05:18] [#]} Rxe1+ $1 {[%emt 0:00:04][%mdl 512]} 34. Rxe1 {[%emt 0:00:05]} Qxc2 {[%emt 0:00:04][%csl Ga8][%cal Rc2g2] Really sharp!} 35. Qf1 {[%emt 0:01:42]} (35. Qe2 Qg6 36. Qf2) 35... Be4 {[%emt 0:01:04]} 36. Rc1 {[%emt 0:00:27]} Qb2 {[%emt 0:00:54] White must now prevent ...Ng4.} 37. Rc8+ {[%emt 0:00:32]} Kh7 {[%emt 0:00:12] And now ...Ng4 would win.} 38. Rc4 {[%emt 0:00:57]} d5 {[%emt 0:00:51]} 39. Rc7 {[%emt 0:00:59]} Qe5 {[%emt 0:01:32]} (39... Ng4 $142 40. h3 Qd4+ 41. Kh1 Ne3) 40. Rf7 {[%emt 0:00:29]} Ng4 {[%emt 0:00:42][%csl Gg4][%cal Re5h2]} 41. Qf4 {[%emt 0:01:38]} Qd4+ {[%emt 0:00:10]} 42. Kh1 {[%emt 0:00:19]} Qa1+ {[%emt 0:00:11]} 43. Qf1 {[%emt 0:00:05] [#]} Bxg2+ $1 {[%emt 0:20:54] Weighted Error Value: White=0.91/Black=0.37} 0-1

[Event "Chhattisgarh Masters GM 2022"]
[Site "Chhattisgarh"]
[Date "2022.09.21"]
[Round "3.13"]
[White "Dhananjay S"]
[Black "Franco Valencia, Angela"]
[Result "1-0"]
[ECO "A56"]
[WhiteElo "2197"]
[BlackElo "2066"]
[Annotator "TA"]
[PlyCount "77"]
[EventDate "2022.09.19"]
[EventCountry "IND"]
[SourceTitle "playchess.com"]
[Source "ChessBase"]
[SourceQuality "1"]
[TimeControl "5400+30"]

{[%evp 18,77,57,52,84,66,78,92,85,40,46,47,172,158,177,109,218,218,218,212,297,227,233,191,350,132,156,121,191,89,87,98,141,147,145,147,169,118,89,101,87,106,622,617,892,859,964,691,935,836,873,813,782,766,984,956,987,943,29986,29987,29992,29993]} 1. d4 {[%emt 0:00:04]} Nf6 {[%emt 0:02:54]} 2. c4 {[%emt 0:00:06]} c5 {[%emt 0:00:06]} 3. d5 {[%emt 0:00:03]} e5 {[%emt 0:00:04]} 4. Nc3 {[%emt 0:02:25]} d6 {[%emt 0:00:09]} 5. e4 {[%emt 0:00:40]} Be7 {[%emt 0:00:15]} 6. Bd3 {[%emt 0:02:25]} O-O {[%emt 0:00:29]} 7. h3 {[%emt 0:01:55]} Nbd7 {[%emt 0:01:03]} 8. g4 {[%emt 0:00:59]} Ne8 {[%emt 0:00:55]} 9. Nf3 {[%emt 0:00:06]} a6 {[%emt 0:03:25]} 10. a4 {[%emt 0:00:09]} Rb8 {[%emt 0:00:20] A56: Czech Benoni.} 11. Be3 {[%emt 0:00:06] [#]} Nb6 $146 {[%emt 0:01:17]} ({Predecessor:} 11... Nc7 12. Qe2 Re8 13. h4 Nf8 14. Rg1 Bd7 15. h5 Qc8 16. Nd2 b6 17. g5 Qb7 {1-0 (52) Kunte,A (2522)-Rathnakaran,K (2421) Mumbai 2009}) 12. Rg1 {[%emt 0:08:19]} Bd7 {[%emt 0:01:35] White is better.} 13. Qb1 {[%emt 0:05:52]} Na8 {[%emt 0:05:33]} 14. b4 {[%emt 0:03:02]} b5 {[%emt 0:11:20]} (14... cxb4 $14 15. Qxb4 a5) 15. cxb5 {[%emt 0:04:23]} axb5 {[%emt 0:00:26]} 16. Nxb5 {[%emt 0:00:09]} (16. axb5 $18 Qc7 17. Kf1 (17. bxc5 dxc5 18. Kf1 Nb6 $18)) 16... Bxb5 {[%emt 0:02:14]} (16... Nac7 $16 {was worth a try.}) 17. axb5 $18 {[%emt 0:00:27] Strongly threatening bxc5.} Qc7 {[%emt 0:05:21]} 18. Nd2 {[%emt 0:02:04]} Qd8 {[%emt 0:07:19]} (18... Nf6 {keeps fighting.} 19. bxc5 dxc5) 19. g5 {[%emt 0:01:28]} Nec7 {[%emt 0:02:49]} 20. Ra5 {[%emt 0:07:12] aiming for bxc5.} f6 $2 {[%emt 0:05:25]} (20... Nb6 21. h4 Qd7) 21. Nc4 $2 {[%emt 0:04:44]} (21. gxf6 $18 Bxf6 22. bxc5) 21... Nxb5 $16 {[%emt 0:04:47]} 22. bxc5 $1 {[%emt 0:18:53]} Nd4 {[%emt 0:03:48]} (22... Nac7 $16 23. gxf6 Bxf6) 23. Qd1 {[%emt 0:02:08]} (23. Qa2 $1 $18 {is more deadly.}) 23... dxc5 {[%emt 0:04:10]} 24. gxf6 {[%emt 0:06:56]} Rxf6 {[%emt 0:00:31]} 25. Bxd4 {[%emt 0:00:44] Chess con chili.} cxd4 {[%emt 0:00:44] [#]} 26. Ra7 $1 {[%emt 0:00:40] And now d6 would win.} ({Not} 26. Qg4 $2 Rg6 27. Qxg6 hxg6 $19) 26... Rf7 {[%emt 0:14:39] [#] ...Bb4+ is the strong threat.} 27. Kf1 {[%emt 0:15:18]} ({White should play} 27. Qa1 $1 $18 Qe8 28. d6 (28. Nxe5 Bb4+ 29. Ke2 Qxe5 $11)) 27... Qf8 {[%emt 0:02:34]} 28. Ra2 $36 {[%emt 0:01:59][%mdl 2048] White is on the roll. White is much more active.} (28. Nxe5 Rxf2+ 29. Ke1 Bb4+) 28... Bh4 {[%emt 0:02:05][%cal Rf7f2]} 29. Rg2 {[%emt 0:00:22]} Rf3 $2 {[%emt 0:02:43][%mdl 8192]} (29... Bf6 $16) 30. Nxe5 $18 {[%emt 0:01:55]} Rxh3 {[%emt 0:00:02]} 31. Qg4 {[%emt 0:01:54] Inhibits Qf4.} Rh1+ {[%emt 0:06:36]} 32. Rg1 {[%emt 0:02:28]} Rh2 {[%emt 0:00:13]} 33. Nf3 {[%emt 0:00:28]} Rxf2+ {[%emt 0:03:42]} 34. Rxf2 {[%emt 0:00:06]} Bxf2 {[%emt 0:00:02]} 35. Kxf2 {[%emt 0:00:12]} Rb2+ {[%emt 0:00:07]} 36. Kg3 {[%emt 0:00:14]} Nc7 {[%emt 0:00:48]} 37. e5 {[%emt 0:00:50] Intending d6 and mate.} Rb4 {[%emt 0:01:14]} 38. d6 {[%emt 0:00:15]} Ne8 {[%emt 0:00:14] [#]} 39. Bxh7+ $1 {[%emt 0:00:08][%mdl 512] Weighted Error Value: White=0.48/Black=0.78} 1-0

[Event "Chhattisgarh Masters GM 2022"]
[Site "Chhattisgarh"]
[Date "2022.09.21"]
[Round "3.13"]
[White "Ravi, Kumar"]
[Black "Kushagra Mohan"]
[Result "1/2-1/2"]
[ECO "B13"]
[WhiteElo "2156"]
[BlackElo "2431"]
[Annotator "TA"]
[PlyCount "118"]
[EventDate "2022.09.19"]
[EventCountry "IND"]
[SourceTitle "playchess.com"]
[Source "ChessBase"]
[SourceQuality "1"]
[TimeControl "5400+30"]

{[%evp 14,118,8,-25,-18,-13,5,0,3,6,0,0,0,-14,10,0,10,6,6,0,0,0,0,0,0,0,0,0,0,-9,-8,-9,-5,-25,-23,-23,-24,-18,-4,-26,0,0,0,0,0,0,2,0,21,25,11,16,17,0,0,0,0,1,10,8,32,32,68,26,223,226,226,221,218,220,222,148,289,196,196,196,196,196,170,107,107,0,0,0,1,1,1,0,0,0,7,7,8,8,8,8,8,8,8,0,0,0,0,0,0,0,0]} 1. e4 {[%emt 0:00:10]} c6 {[%emt 0:00:06]} 2. d4 {[%emt 0:00:44]} d5 {[%emt 0:00:02]} 3. exd5 {[%emt 0:00:33]} cxd5 {[%emt 0:00:03]} 4. Bd3 {[%emt 0:00:40]} Nc6 {[%emt 0:00:14]} 5. c3 {[%emt 0:00:21]} Qc7 {[%emt 0:00:04]} 6. Ne2 {[%emt 0:01:31]} Bg4 {[%emt 0:00:25]} 7. f3 {[%emt 0:01:03]} Bd7 {[%emt 0:00:08]} 8. Bf4 {[%emt 0:00:09]} e5 {[%emt 0:00:12] B13: Caro-Kann: Exchange Variation and Panov-Botvinnik Attack.} 9. Bg3 {[%emt 0:07:36]} Bd6 {[%emt 0:01:09]} 10. Na3 {[%emt 0:02:19] White wants to play Nb5.} a6 {[%emt 0:04:54] Against Nb5} 11. Nc2 {[%emt 0:01:21]} f6 {[%emt 0:01:05] [#]} 12. O-O $146 {[%emt 0:04:34]} ({Predecessor:} 12. Ne3 Nge7 13. Bc2 Be6 14. O-O h5 15. h4 O-O-O 16. b4 g5 17. a4 f5 18. b5 {½-½ (46) Xylogiannopoulos,A (2279)-Smirnov,A (2508) Anogia 2017}) 12... Nge7 {[%emt 0:01:27]} 13. Qd2 {[%emt 0:13:44]} O-O {[%emt 0:06:22]} 14. Kh1 {[%emt 0:03:15]} Be6 {[%emt 0:05:32]} 15. Rad1 {[%emt 0:09:43]} Qd7 {[%emt 0:02:46]} 16. dxe5 {[%emt 0:14:38]} fxe5 {[%emt 0:00:17]} 17. f4 {[%emt 0:00:37]} e4 {[%emt 0:04:13]} 18. Bxe4 {[%emt 0:00:25]} dxe4 {[%emt 0:00:06]} 19. Qxd6 {[%emt 0:00:08]} Qxd6 {[%emt 0:00:02]} 20. Rxd6 {[%emt 0:00:10]} Bxa2 {[%emt 0:00:21]} 21. Ne3 {[%emt 0:01:06]} Nf5 {[%emt 0:02:11]} 22. Nxf5 {[%emt 0:00:54]} Rxf5 {[%emt 0:00:01]} 23. Nd4 Nxd4 24. Rxd4 {[%emt 0:10:31]} Re8 {[%emt 0:04:26]} 25. Re1 {[%emt 0:05:42]} Bd5 {[%emt 0:02:21]} 26. Kg1 {[%emt 0:03:36]} Bc6 {[%emt 0:02:45]} (26... e3 {is more complex.} 27. Rd3 e2 28. Rd4 b5) 27. Kf2 {[%emt 0:02:57]} Rb5 {[%emt 0:01:53]} 28. Rd2 {[%emt 0:03:18]} a5 {[%emt 0:00:50]} 29. Ke3 {[%emt 0:01:04]} a4 {[%emt 0:02:07]} 30. Ra1 {[%emt 0:02:00]} Rb6 {[%emt 0:02:09]} 31. Bh4 Bb5 {[%emt 0:03:41]} 32. Bd8 {[%emt 0:04:17]} Rh6 {[%emt 0:04:20]} 33. g3 {[%emt 0:05:31]} Bd3 {[%emt 0:00:44]} 34. Bc7 {[%emt 0:00:28]} b5 {[%emt 0:00:26]} 35. Be5 {[%emt 0:00:28]} Rh3 {[%emt 0:00:56]} 36. c4 {[%emt 0:01:53]} bxc4 {[%emt 0:01:51]} 37. Rxa4 {[%emt 0:00:08]} Re7 {[%emt 0:00:16] Against Ra7} 38. Bd6 {[%emt 0:01:10]} Rb7 {[%emt 0:01:38]} (38... Rd7 $11 {and Black is okay.} 39. Be5 Re7) 39. Ra8+ $18 {[%emt 0:00:29]} Kf7 {[%emt 0:00:01]} 40. f5 {[%emt 0:00:35][%csl Gd6][%cal Ra8f8,Bf4f5,Bf5f6][%mdl 32]} Kf6 {[%emt 0:00:00]} 41. Rf2 {[%emt 0:00:00]} Rf7 {[%emt 0:00:00]} 42. Re8 {[%emt 0:00:00]} Kg5 {[%emt 0:00:00]} (42... Rd7 $16 {might work better.}) 43. Be7+ Kg4 {[%emt 0:00:00]} 44. f6 {[%emt 0:00:00] And now Rg8 would win.} Rh5 {[%emt 0:00:00]} 45. Rg8 $1 {[%emt 0:00:00]} Rg5 {[%emt 0:00:00]} 46. Rf4+ {[%emt 0:00:12]} (46. h4 $1 $18 {[%cal Rh4g5]} Rg6 47. h5) 46... Kh3 $16 {[%emt 0:00:00] [#]} 47. Rh4+ {[%emt 0:00:52]} (47. Kf2 $1 $16 {[%csl Gg3][%cal Rf4h4]} e3+ 48. Kg1 (48. Kxe3 Kg2 $14)) 47... Kg2 $11 {[%emt 0:00:00] The position is equal.} 48. Rxh7 {[%emt 0:01:27]} gxf6 {[%emt 0:00:00]} 49. Rxf7 {[%emt 0:01:15]} Rxg8 {[%emt 0:00:00]} 50. Rxf6 {[%emt 0:00:11]} Kxh2 {[%emt 0:00:00][%mdl 4096] Endgame KRB-KRB} 51. Kf2 {[%emt 0:00:47][%cal Rf6h6]} Rh8 {[%emt 0:00:00] Against Rh6+} 52. Rf4 {[%emt 0:01:10]} e3+ {[%emt 0:00:00]} 53. Kxe3 {[%emt 0:00:02]} Kxg3 {[%emt 0:00:00]} ({Resist} 53... Re8 {[#]} 54. Kf2 $1 Rh8 55. Bf6 $16) 54. Bd6 {[%emt 0:00:25] Strongly threatening Rf8+.} Kg2 {[%emt 0:00:00]} 55. Rg4+ {[%emt 0:00:10]} Kf1 {[%emt 0:00:00]} 56. Bc5 {[%emt 0:00:39]} Re8+ {[%emt 0:00:00]} 57. Kd2 {[%emt 0:00:40][%csl Gc5][%cal Rg4g1]} Re2+ {[%emt 0:00:00]} 58. Kd1 {[%emt 0:00:33][%csl Gc5][%cal Rg4g1]} Re1+ $1 {[%emt 0:00:00]} 59. Kd2 {[%emt 0:00:14][%csl Gc5][%cal Rg4g1]} Re2+ {[%emt 0:00:00] Black escapes into a draw.  Weighted Error Value: White=0.14 (very precise) /Black=0.17 (very precise)} 1/2-1/2

[Event "Chhattisgarh Masters GM 2022"]
[Site "Chhattisgarh"]
[Date "2022.09.21"]
[Round "3.14"]
[White "Nayak Rajesh"]
[Black "Sammed Jaykumar, Shete"]
[Result "1/2-1/2"]
[ECO "D00"]
[WhiteElo "2142"]
[BlackElo "2387"]
[Annotator "TA"]
[PlyCount "80"]
[EventDate "2022.09.19"]
[EventCountry "IND"]
[SourceTitle "playchess.com"]
[Source "ChessBase"]
[SourceQuality "1"]
[TimeControl "5400+30"]

{[%evp 9,80,-16,-30,-30,-18,-66,-59,-68,-67,-79,-98,-122,-116,-116,-100,-130,-104,-144,-144,-144,-130,-174,-163,-186,-33,-78,-20,-8,-21,-42,60,29,19,17,17,23,25,17,59,67,85,-122,0,0,198,12,143,0,0,0,304,312,286,268,220,0,188,0,0,0,0,0,0,0,0,0,0,0,8,0,8,8,28]} 1. d4 {[%emt 0:00:07]} Nf6 {[%emt 0:00:10]} 2. Nc3 {[%emt 0:00:07]} d5 {[%emt 0:00:04]} 3. Bf4 {[%emt 0:00:07]} e6 {[%emt 0:02:03]} 4. e3 {[%emt 0:00:12]} Bb4 {[%emt 0:00:10]} 5. Nge2 {[%emt 0:02:50]} O-O {[%emt 0:02:49]} 6. a3 {[%emt 0:00:12] D00: 1 d4 d5: Unusual lines.} Be7 {[%emt 0:00:12]} 7. g4 {[%emt 0:00:44]} (7. Nc1 $11 {was preferrable.}) 7... Nxg4 $15 {[%emt 0:04:23]} 8. Rg1 {[%emt 0:07:38] Black is slightly better.} f5 {[%emt 0:00:07] [#]} 9. h3 $146 {[%emt 0:09:20]} ({Predecessor:} 9. Qd2 c5 10. f3 Nf6 11. O-O-O Nc6 12. Bh6 Rf7 13. Nf4 Kh8 14. Bg5 Bd7 15. h4 {1-0 (55) Furfine,J (2298)-Yanayt,E (2220) Saint Louis 2019}) 9... Nf6 {[%emt 0:00:12]} 10. Bh6 {[%emt 0:00:11]} Rf7 {[%emt 0:01:34]} 11. Nf4 {[%emt 0:00:14]} c5 {[%emt 0:11:05]} 12. Be2 {[%emt 0:06:38]} Nc6 {[%emt 0:08:53]} 13. Bh5 {[%emt 0:03:39]} Nxh5 {[%emt 0:01:04]} 14. Qxh5 {[%emt 0:01:19][%cal Oh6g7]} Bf6 {[%emt 0:06:48]} (14... cxd4 15. Qxf7+ Kxf7 16. Rxg7+ Ke8 17. Rg8+ Kf7 18. Rg7+ Ke8 19. Rg8+ Kd7 20. Rxd8+ Nxd8 21. exd4 $15) 15. O-O-O {[%emt 0:03:06]} cxd4 {[%emt 0:09:19]} 16. exd4 {[%emt 0:00:19]} Bd7 $2 {[%emt 0:02:18]} ({Black should play} 16... Bxd4 $19 {Strongly threatening ...Be5.} 17. Nb5 Be5) 17. Nce2 {[%emt 0:02:03]} Qf8 {[%emt 0:04:41]} (17... Qb6 $17 {[%cal Rc6d4]} 18. Bxg7 Bxg7) 18. Rd3 {[%emt 0:06:38]} b5 {[%emt 0:02:37]} 19. Rdg3 Ne7 {[%emt 0:11:11]} ({Black should try} 19... Re8 $15) 20. h4 {[%emt 0:24:38][%cal Bh3h4,Bh4h5,Bh5h6][%mdl 32]} e5 {[%emt 0:09:23]} 21. dxe5 {[%emt 0:04:41]} Bxe5 {[%emt 0:00:06][%cal Ob5b4]} 22. Qf3 {[%emt 0:01:30]} Kh8 $1 {[%emt 0:08:38]} 23. Bg5 {[%emt 0:00:27]} b4 {[%emt 0:01:50]} 24. h5 {[%emt 0:01:27] Black must now prevent Bxe7.} bxa3 {[%emt 0:00:37]} 25. bxa3 (25. Bxe7 $16 {stays on course.} Qxe7 26. Ng6+ $1 hxg6 27. hxg6) 25... Kg8 (25... Qb8 $1 $17 {Threatens to win with ...Qb2+.} 26. Rh3 Qb2+ 27. Kd2 Ba4) 26. Bh6 $11 {[%emt 0:04:15] And now Qe3 would win.} (26. Bxe7 Qxe7 27. Ng6 (27. Qxd5 Rc8 $11) 27... Qe8 28. Nxe5 Qxe5 $15) 26... Rc8 $2 {[%emt 0:03:22]} (26... Kh8 $11 {and Black has nothing to worry.} 27. Ng6+ Nxg6 28. hxg6 f4 29. gxf7 fxg3 30. Qxd5 gxf2) 27. Bxg7 $2 (27. Qe3 $18 Nc6 28. Bxg7 $1 {[%mdl 512]} Rxg7 29. Rxg7+ Bxg7 30. h6) 27... Rxg7 {[%emt 0:01:24] [#]} (27... Bxg7 $11 {keeps the balance.} 28. h6 Ng6 29. Nxg6 Bxh6+ 30. Kd1 (30. Ngf4+ Kh8 $11) 30... hxg6 31. Rxg6+ Rg7 32. Qxd5+ Qf7 33. Qxf7+ Kxf7 34. Rxh6 Bb5 35. Rxg7+ Kxg7) 28. Rxg7+ {[%emt 0:01:37] Dancing on a razor blade.} (28. Qe3 $1 $16 {[%cal Re3e5]}) 28... Bxg7 {[%emt 0:02:23] A strong pair of Bishops.} 29. h6 $1 {[%emt 0:00:07][%mdl 64] Pin} Qf6 {[%emt 0:00:03][%mdl 8192]} 30. Rxg7+ $18 {[%emt 0:01:37]} Kh8 {[%emt 0:00:08]} 31. Qd3 {[%emt 0:05:04] Qd4 is the strong threat.} Rc4 {[%emt 0:02:10] Inhibits Qd4.} (31... Rb8 $2 32. Qd4 Qxd4 33. Nxd4 $18) 32. c3 $2 {[%emt 0:06:28]} (32. Nxd5 Qxh6+ 33. Ne3 Rxc2+ 34. Kxc2 Qc6+ 35. Kd2 Kxg7 $11) (32. Kb1 $18 Qb6+ 33. Ka2) 32... Qd6 {[%emt 0:01:06] [#]} (32... Re4 $1 $11 33. f3 Qxh6 34. fxe4 fxe4) 33. Kd2 $2 {[%emt 0:01:19]} (33. f3 $1 $18) 33... Re4 $36 {[%emt 0:01:30][%mdl 2048] Prevents Qe3. Black fights for an advantage. The position is equal.} (33... Rxf4 $2 34. Nxf4 (34. Rxe7 Qxe7 35. Nxf4 Qf6 $16) 34... Qxh6 35. Rxe7 $18) 34. f3 {[%emt 0:00:22]} Qxh6 (34... Rxf4 $2 35. Qe3 (35. Rxe7 Qxe7 36. Nxf4 Qf6 $16) 35... Ng6 36. Nxf4 $18) 35. fxe4 {[%emt 0:00:44]} fxe4 {[%emt 0:01:57]} 36. Rxh7+ {[%emt 0:01:36]} Kxh7 {[%emt 0:00:40]} 37. Qd4 {[%emt 0:00:10]} Qd6 {[%emt 0:01:58]} 38. Qxa7 {[%emt 0:00:24]} Nc6 {[%emt 0:00:55]} 39. Qf2 {[%emt 0:00:42]} Ne5 {[%emt 0:01:18]} ({Don't take} 39... Qh6 40. Qc5 $16) 40. Qh4+ {[%emt 0:00:09]} Kg8 {[%emt 0:00:44] What a bad dream for Black.  Weighted Error Value: White=0.45/Black=0.42} 1/2-1/2

[Event "Chhattisgarh Masters GM 2022"]
[Site "Chhattisgarh"]
[Date "2022.09.21"]
[Round "3.14"]
[White "Priyankara, Chamil"]
[Black "Masango, Spencer"]
[Result "0-1"]
[ECO "D91"]
[WhiteElo "1874"]
[BlackElo "2192"]
[Annotator "TA"]
[PlyCount "62"]
[EventDate "2022.09.19"]
[EventCountry "IND"]
[SourceTitle "playchess.com"]
[Source "ChessBase"]
[SourceQuality "1"]
[TimeControl "5400+30"]

{[%evp 16,62,10,0,0,0,0,0,9,-35,-33,-24,0,-55,-20,-81,-71,-86,-36,-28,-6,-22,39,48,35,35,59,-28,-35,-26,-20,-37,-23,-18,-22,-41,-36,-15,-25,-141,-22,-328,-328,-328,-327,-320,-311,-296,-289]} 1. d4 {[%emt 0:00:09]} Nf6 {[%emt 0:00:31]} 2. Nf3 {[%emt 0:01:29]} g6 {[%emt 0:00:08]} 3. c4 {[%emt 0:00:34]} Bg7 {[%emt 0:00:08]} 4. Nc3 {[%emt 0:00:02]} d5 {[%emt 0:00:09]} 5. Bg5 {[%emt 0:00:05]} Ne4 {[%emt 0:00:07]} 6. Bh4 {[%emt 0:00:59]} Nxc3 {[%emt 0:00:09]} 7. bxc3 {[%emt 0:00:03]} dxc4 {[%emt 0:00:10]} 8. e3 {[%emt 0:01:36]} Be6 {[%emt 0:03:50][%cal Bc8e6,Be6d5,Bd5b7][%mdl 32]} 9. Qb1 {[%emt 0:01:50]} b6 {[%emt 0:03:22] D91: Grünfeld: 4 Nf3 Bg7 5 Bg5.} 10. Ng5 {[%emt 0:06:51]} Bd5 {[%emt 0:08:20]} 11. e4 {[%emt 0:02:24]} h6 {[%emt 0:00:11] The position is equal.} 12. Nh3 {[%emt 0:01:05]} (12. Nf3 $5 {[%cal Re4d5]} Be6 13. Qb2 $11) 12... Bb7 {[%emt 0:04:06]} 13. Bxc4 {[%emt 0:12:18]} c5 {[%emt 0:05:31] [#] And now ...g5 would win.} 14. O-O {[%emt 0:03:40]} (14. Qb3 $11 O-O 15. d5) 14... cxd4 {[%emt 0:08:09] White must now prevent ...0-0.} (14... O-O $5 {[%cal Rc5d4]} 15. Rd1 cxd4 16. cxd4 Nc6 $17) 15. Rd1 {[%emt 0:05:49]} (15. Nf4 $11 {remains equal.} Qd7 16. Qb3) 15... O-O $17 {[%emt 0:07:43]} 16. cxd4 {[%emt 0:05:21] [#]} Qd7 $146 {[%emt 0:05:21]} (16... Qc8 $17 17. Qb3 Qg4) ({Predecessor:} 16... Nc6 17. d5 Na5 18. Be2 Bc8 19. d6 g5 20. Nxg5 hxg5 21. Bxg5 f6 22. Bd2 Nb7 {½-½ (35) Kaabi,M (2215)-Cronje,H (2204) ICCF email 2008}) 17. Bg3 $15 {[%emt 0:15:37]} Nc6 {[%emt 0:02:51]} 18. d5 {[%emt 0:13:20]} Ne5 {[%emt 0:02:13]} (18... Bxa1 19. dxc6 Qxc6 20. Bd5 $14) (18... Nd4 $1 $11) 19. Bb5 $14 {[%emt 0:01:05]} Qd6 {[%emt 0:01:07]} 20. Qb3 {[%emt 0:04:14]} Rac8 {[%emt 0:08:17]} 21. f4 {[%emt 0:09:01]} ({White should play} 21. Nf4 $14) 21... Ng4 $11 {[%emt 0:02:55] Strongly threatening ...Rc3.} 22. e5 {[%emt 0:00:12]} Qc5+ {[%emt 0:00:29]} 23. Kh1 {[%emt 0:00:02]} Qc3 {[%emt 0:12:22] Threatens to win with ...Ne3.} 24. Bd7 {[%emt 0:01:44][%csl LRc8,LRg4]} Ne3 {[%emt 0:08:13]} 25. Bxc8 {[%emt 0:00:31]} Rxc8 {[%emt 0:00:14]} 26. Qxc3 {[%emt 0:02:43]} Rxc3 {[%emt 0:00:30]} 27. d6 {[%emt 0:05:49]} (27. Rd2 $11 {keeps the balance.}) 27... exd6 {[%emt 0:00:28] Black is more active.} ({Resist} 27... Nxd1 28. dxe7 Bc6 29. Rxd1 $16) (27... Nxg2 $2 28. d7 (28. Kg1 exd6 29. exd6 Bf6 $18) 28... Nxf4+ 29. Kg1 $18) ({Better is} 27... Bxg2+ $17 28. Kg1 exd6) 28. exd6 $2 {[%emt 0:00:03][%mdl 8192] Loses the game.} (28. Rd2 $11 {and White is okay.}) 28... Bxg2+ $19 {[%emt 0:00:19] This bishop pair is nice. Black has a decisive advantage.} (28... Nxd1 29. Rxd1 Rc8 30. f5 $11) 29. Kg1 {[%emt 0:00:10] Hoping for d7.} Nxd1 {[%emt 0:00:24]} ({Weaker is} 29... Bxh3 30. d7 Bxd7 31. Rxd7 $11) 30. Rxd1 {[%emt 0:01:28]} Bxh3 {[%emt 0:00:08]} 31. d7 {[%emt 0:00:04] [#]} Bxd7 $1 {[%emt 0:00:15] Weighted Error Value: White=0.49/Black=0.18 (very precise)} 0-1